[Event "FIDE Grand Swiss 2023"]
[Site "Villa Marina, Douglas, Isle of Man, Isle Of Man"]
[Date "2023.11.02"]
[Round "8.52"]
[White "Samunenkov, Ihor"]
[Black "Mendonca, Leon Luke"]
[Result "1/2-1/2"]
[TimeControl "40/90 + 30 + 30s/move"]
[WhiteFideId "14187086"]
[BlackFideId "35028561"]
[WhiteElo "2531"]
[BlackElo "2622"]

1. d4 {[%clk 01:40:54]} {[%emt 00:00:05]} Nf6 {[%clk 01:40:51]} {[%emt
00:00:09]} 2. c4 {[%clk 01:41:11]} {[%emt 00:00:13]} e6 {[%clk 01:41:07]}
{[%emt 00:00:14]} 3. g3 {[%clk 01:41:26]} {[%emt 00:00:15]} d5 {[%clk
01:40:49]} {[%emt 00:00:48]} 4. Nf3 {[%clk 01:41:40]} {[%emt 00:00:16]} Bb4+
{[%clk 01:40:28]} {[%emt 00:00:51]} 5. Bd2 {[%clk 01:41:25]} {[%emt 00:00:45]}
Bd6 {[%clk 01:40:03]} {[%emt 00:00:55]} 6. Bg2 {[%clk 01:35:30]} {[%emt
00:06:26]} O-O {[%clk 01:40:18]} {[%emt 00:00:14]} 7. Qc2 {[%clk 01:32:02]}
{[%emt 00:03:58]} a5 {[%clk 01:34:56]} {[%emt 00:05:52]} 8. O-O {[%clk
01:25:48]} {[%emt 00:06:45]} c6 {[%clk 01:34:27]} {[%emt 00:00:58]} 9. Nc3
{[%clk 01:09:31]} {[%emt 00:16:47]} dxc4 {[%clk 01:32:52]} {[%emt 00:02:05]} 10.
Bg5 {[%clk 01:08:53]} {[%emt 00:01:07]} Be7 {[%clk 01:25:53]} {[%emt 00:07:30]}
11. e3 {[%clk 01:03:57]} {[%emt 00:05:25]} b5 {[%clk 01:07:46]} {[%emt
00:18:38]} 12. a4 {[%clk 00:54:45]} {[%emt 00:09:42]} b4 {[%clk 01:01:03]}
{[%emt 00:07:14]} 13. Bxf6 {[%clk 00:53:45]} {[%emt 00:01:29]} gxf6 {[%clk
01:01:22]} {[%emt 00:00:11]} 14. Ne4 {[%clk 00:51:42]} {[%emt 00:02:33]} Ba6
{[%clk 00:58:30]} {[%emt 00:03:23]} 15. Rfc1 {[%clk 00:34:47]} {[%emt
00:17:23]} Nd7 {[%clk 00:58:19]} {[%emt 00:00:42]} 16. Bf1 {[%clk 00:34:07]}
{[%emt 00:01:10]} c5 {[%clk 00:48:35]} {[%emt 00:10:15]} 17. Nxc5 {[%clk
00:28:49]} {[%emt 00:05:47]} Nxc5 {[%clk 00:44:31]} {[%emt 00:04:34]} 18. dxc5
{[%clk 00:29:11]} {[%emt 00:00:08]} Rc8 {[%clk 00:44:39]} {[%emt 00:00:22]} 19.
Bxc4 {[%clk 00:26:48]} {[%emt 00:02:53]} Rxc5 {[%clk 00:40:24]} {[%emt
00:04:46]} 20. Qe2 {[%clk 00:21:22]} {[%emt 00:05:55]} Qc7 {[%clk 00:34:55]}
{[%emt 00:06:00]} 21. b3 {[%clk 00:21:17]} {[%emt 00:00:35]} f5 {[%clk
00:26:47]} {[%emt 00:08:37]} 22. Nd4 {[%clk 00:17:35]} {[%emt 00:04:11]} Bf6
{[%clk 00:26:02]} {[%emt 00:01:16]} 23. Ra2 {[%clk 00:16:09]} {[%emt 00:01:56]}
Bxc4 {[%clk 00:22:14]} {[%emt 00:04:18]} 24. bxc4 {[%clk 00:15:48]} {[%emt
00:00:51]} Rc8 {[%clk 00:21:46]} {[%emt 00:00:59]} 25. Rac2 {[%clk 00:15:24]}
{[%emt 00:00:53]} Qd7 {[%clk 00:20:41]} {[%emt 00:01:36]} 26. Nb3 {[%clk
00:14:40]} {[%emt 00:01:13]} Qxa4 {[%clk 00:20:36]} {[%emt 00:00:35]} 27. Nxc5
{[%clk 00:14:59]} {[%emt 00:00:11]} Rxc5 {[%clk 00:21:04]} {[%emt 00:00:02]} 28.
Ra2 {[%clk 00:14:43]} {[%emt 00:00:46]} Qc6 {[%clk 00:12:10]} {[%emt 00:09:25]}
29. Qd1 {[%clk 00:14:13]} {[%emt 00:00:57]} Kg7 {[%clk 00:09:54]} {[%emt
00:02:50]} 30. h3 {[%clk 00:07:02]} {[%emt 00:07:39]} Qb7 {[%clk 00:09:23]}
{[%emt 00:01:03]} 31. Rb1 {[%clk 00:06:32]} {[%emt 00:01:00]} Qe4 {[%clk
00:09:21]} {[%emt 00:00:31]} 32. Rc1 {[%clk 00:06:18]} {[%emt 00:00:44]} h6
{[%clk 00:06:33]} {[%emt 00:03:18]} 33. Kh2 {[%clk 00:05:14]} {[%emt 00:01:34]}
Bc3 {[%clk 00:05:42]} {[%emt 00:01:21]} 34. Qb3 {[%clk 00:04:36]} {[%emt
00:01:07]} Be5 {[%clk 00:06:03]} {[%emt 00:00:11]} 35. Qd1 {[%clk 00:04:40]}
{[%emt 00:00:26]} Qb7 {[%clk 00:04:33]} {[%emt 00:02:00]} 36. Rb1 {[%clk
00:03:51]} {[%emt 00:01:18]} Qe4 {[%clk 00:02:29]} {[%emt 00:02:35]} 37. Rc1
{[%clk 00:03:04]} {[%emt 00:01:17]} Bc3 {[%clk 00:02:04]} {[%emt 00:00:55]} 38.
Qb3 {[%clk 00:02:47]} {[%emt 00:00:46]} Bf6 {[%clk 00:02:27]} {[%emt 00:00:07]}
39. Qd1 {[%clk 00:02:30]} {[%emt 00:00:47]} Be5 {[%clk 00:01:46]} {[%emt
00:01:11]} 40. Kg1 {[%clk 00:01:09]} {[%emt 00:01:51]} Bc3 {[%clk 00:00:59]}
{[%emt 00:01:17]} 41. Qb3 {[%clk 00:46:43]} {[%emt 00:04:55]} Bf6 {[%clk
00:44:34]} {[%emt 00:06:56]} 42. Qd1 {[%clk 00:42:16]} {[%emt 00:04:57]} Kg6
{[%clk 00:43:55]} {[%emt 00:01:09]} 43. Kh2 {[%clk 00:37:58]} {[%emt 00:04:47]}
Bg7 {[%clk 00:35:06]} {[%emt 00:09:20]} 44. Kg1 {[%clk 00:35:57]} {[%emt
00:02:30]} Be5 {[%clk 00:35:18]} {[%emt 00:00:19]} 45. Ra4 {[%clk 00:30:43]}
{[%emt 00:05:44]} Qb7 {[%clk 00:16:19]} {[%emt 00:19:29]} 46. Rb1 {[%clk
00:22:24]} {[%emt 00:08:49]} Qc6 {[%clk 00:16:04]} {[%emt 00:00:45]} 47. Rc1
{[%clk 00:17:39]} {[%emt 00:05:15]} Bf6 {[%clk 00:14:07]} {[%emt 00:02:27]} 48.
Ra2 {[%clk 00:16:21]} {[%emt 00:01:48]} Qb7 {[%clk 00:14:21]} {[%emt 00:00:16]}
49. Rb1 {[%clk 00:14:29]} {[%emt 00:02:22]} Qe4 {[%clk 00:14:43]} {[%emt
00:00:08]} 50. Rc1 {[%clk 00:14:17]} {[%emt 00:00:42]} h5 {[%clk 00:12:16]}
{[%emt 00:02:58]} 51. h4 {[%clk 00:10:31]} {[%emt 00:04:16]} Qb7 {[%clk
00:09:47]} {[%emt 00:02:59]} 52. Rb1 {[%clk 00:09:30]} {[%emt 00:01:30]} Qc6
{[%clk 00:09:45]} {[%emt 00:00:33]} 53. Rc1 {[%clk 00:09:21]} {[%emt 00:00:39]}
Kg7 {[%clk 00:07:41]} {[%emt 00:02:33]} 54. Kh2 {[%clk 00:07:45]} {[%emt
00:02:05]} Qb7 {[%clk 00:07:49]} {[%emt 00:00:23]} 55. Ra4 {[%clk 00:02:43]}
{[%emt 00:05:32]} Qc6 {[%clk 00:06:55]} {[%emt 00:01:24]} 56. Kg1 {[%clk
00:02:20]} {[%emt 00:00:52]} Kg6 {[%clk 00:07:08]} {[%emt 00:00:18]} 57. Ra2
{[%clk 00:02:00]} {[%emt 00:00:50]} Qb7 {[%clk 00:07:25]} {[%emt 00:00:14]} 58.
Rb1 {[%clk 00:01:32]} {[%emt 00:00:58]} Qc7 {[%clk 00:05:45]} {[%emt 00:02:10]}
59. Rc1 {[%clk 00:01:45]} {[%emt 00:00:17]} Qc6 {[%clk 00:05:36]} {[%emt
00:00:39]} 60. Kh2 {[%clk 00:00:33]} {[%emt 00:01:42]} Qb7 {[%clk 00:04:29]}
{[%emt 00:01:37]} 61. Ra4 {[%clk 00:13:06]} {[%emt 00:02:57]} Qc6 {[%clk
00:06:58]} {[%emt 00:13:02]} 62. Kg1 {[%clk 00:11:44]} {[%emt 00:01:51]} Kh6
{[%clk 00:07:09]} {[%emt 00:00:19]} 63. Ra2 {[%clk 00:10:14]} {[%emt 00:02:00]}
Kg7 {[%clk 00:05:51]} {[%emt 00:01:48]} 64. Kh2 {[%clk 00:08:46]} {[%emt
00:01:57]} Qb7 {[%clk 00:04:05]} {[%emt 00:02:18]} 65. Ra4 {[%clk 00:08:09]}
{[%emt 00:01:06]} Qe4 {[%clk 00:03:38]} {[%emt 00:00:57]} 66. Kg1 {[%clk
00:04:41]} {[%emt 00:03:58]} Qg4 {[%clk 00:01:24]} {[%emt 00:02:45]} 67. Qxg4+
{[%clk 00:02:50]} {[%emt 00:02:21]} fxg4 {[%clk 00:01:53]} {[%emt 00:00:01]} 68.
Kf1 {[%clk 00:03:05]} {[%emt 00:00:14]} Kf8 {[%clk 00:01:19]} {[%emt 00:01:04]}
69. Ke2 {[%clk 00:01:22]} {[%emt 00:02:14]} Ke8 {[%clk 00:01:48]} {[%emt
00:00:01]} 70. Rd1 {[%clk 00:01:00]} {[%emt 00:00:51]} Be5 {[%clk 00:01:16]}
{[%emt 00:01:02]} 71. Kd3 {[%clk 00:00:46]} {[%emt 00:00:44]} Ke7 {[%clk
00:00:42]} {[%emt 00:01:04]} 72. Rd2 {[%clk 00:00:37]} {[%emt 00:00:39]} Bc7
{[%clk 00:00:57]} {[%emt 00:00:16]} 73. Rd1 {[%clk 00:00:35]} {[%emt 00:00:31]}
Ke8 {[%clk 00:00:35]} {[%emt 00:00:52]} 74. Rd2 {[%clk 00:00:53]} {[%emt
00:00:12]} Ke7 {[%clk 00:00:32]} {[%emt 00:00:33]} 75. Rd1 {[%clk 00:01:03]}
{[%emt 00:00:20]} Bb6 {[%clk 00:00:34]} {[%emt 00:00:29]} 76. Rd2 {[%clk
00:00:58]} {[%emt 00:00:35]} Kf6 {[%clk 00:00:43]} {[%emt 00:00:21]} 77. Rd1
{[%clk 00:00:52]} {[%emt 00:00:35]} Ke5 {[%clk 00:01:07]} {[%emt 00:00:06]} 78.
Rd2 {[%clk 00:00:59]} {[%emt 00:00:22]} Rc8 {[%clk 00:01:05]} {[%emt 00:00:33]}
79. Rd1 {[%clk 00:00:53]} {[%emt 00:00:36]} Rc7 {[%clk 00:00:46]} {[%emt
00:00:49]} 80. Rd2 {[%clk 00:01:12]} {[%emt 00:00:10]} Rc5 {[%clk 00:01:13]}
{[%emt 00:00:05]} 81. Rd1 {[%clk 00:01:23]} {[%emt 00:00:18]} Kf5 {[%clk
00:01:12]} {[%emt 00:00:31]} 82. Rc1 {[%clk 00:00:52]} {[%emt 00:01:00]} Kf6
{[%clk 00:01:16]} {[%emt 00:00:26]} 83. Rc2 {[%clk 00:01:01]} {[%emt 00:00:21]}
Bc7 {[%clk 00:01:24]} {[%emt 00:00:22]} 84. Rc1 {[%clk 00:01:12]} {[%emt
00:00:19]} Ke7 {[%clk 00:01:11]} {[%emt 00:00:43]} 85. Rd1 {[%emt 00:01:16]}
1/2-1/2

[Event "FIDE Grand Swiss 2023"]
[Site "Villa Marina, Douglas, Isle of Man, Isle Of Man"]
[Date "2023.11.02"]
[Round "8.53"]
[White "Wagner, Dennis"]
[Black "Lazavik, Denis"]
[Result "1/2-1/2"]
[TimeControl "40/90 + 30 + 30s/move"]
[WhiteFideId "24650684"]
[BlackFideId "13515110"]
[WhiteElo "2589"]
[BlackElo "2560"]

1. d4 {[%clk 01:40:55]} {[%emt 00:00:03]} Nf6 {[%clk 01:40:46]} {[%emt
00:00:14]} 2. c4 {[%clk 01:41:15]} {[%emt 00:00:11]} e6 {[%clk 01:40:57]}
{[%emt 00:00:18]} 3. Nf3 {[%clk 01:41:33]} {[%emt 00:00:12]} d5 {[%clk
01:41:03]} {[%emt 00:00:24]} 4. Nc3 {[%clk 01:41:46]} {[%emt 00:00:18]} Be7
{[%clk 01:40:55]} {[%emt 00:00:37]} 5. Bg5 {[%clk 01:41:50]} {[%emt 00:00:27]}
h6 {[%clk 01:40:41]} {[%emt 00:00:44]} 6. Bh4 {[%clk 01:42:12]} {[%emt
00:00:08]} dxc4 {[%clk 01:40:32]} {[%emt 00:00:39]} 7. e3 {[%clk 01:42:14]}
{[%emt 00:00:28]} c5 {[%clk 01:40:42]} {[%emt 00:00:19]} 8. Bxc4 {[%clk
01:42:33]} {[%emt 00:00:12]} cxd4 {[%clk 01:40:53]} {[%emt 00:00:18]} 9. exd4
{[%clk 01:42:51]} {[%emt 00:00:12]} Nc6 {[%clk 01:38:51]} {[%emt 00:02:32]} 10.
O-O {[%clk 01:42:42]} {[%emt 00:00:39]} O-O {[%clk 01:39:07]} {[%emt 00:00:14]}
11. Re1 {[%clk 01:42:51]} {[%emt 00:00:21]} Nh5 {[%clk 01:38:35]} {[%emt
00:01:02]} 12. Re4 {[%clk 01:43:07]} {[%emt 00:00:15]} Nf6 {[%clk 01:37:52]}
{[%emt 00:01:13]} 13. Re2 {[%clk 01:43:20]} {[%emt 00:00:17]} Nh5 {[%clk
01:20:37]} {[%emt 00:17:45]} 14. Bg3 {[%clk 01:43:30]} {[%emt 00:00:22]} Nxg3
{[%clk 01:19:18]} {[%emt 00:01:46]} 15. hxg3 {[%clk 01:43:53]} {[%emt
00:00:07]} Bf6 {[%clk 01:16:54]} {[%emt 00:02:54]} 16. Rd2 {[%clk 01:44:13]}
{[%emt 00:00:11]} Na5 {[%clk 01:09:23]} {[%emt 00:08:00]} 17. Bd3 {[%clk
01:37:14]} {[%emt 00:07:30]} b6 {[%clk 01:07:39]} {[%emt 00:02:14]} 18. Ne4
{[%clk 01:23:13]} {[%emt 00:14:31]} Be7 {[%clk 01:06:12]} {[%emt 00:01:56]} 19.
Ne5 {[%clk 01:00:24]} {[%emt 00:23:20]} Bb7 {[%clk 01:02:56]} {[%emt 00:03:46]}
20. Nc3 {[%clk 00:39:55]} {[%emt 00:20:59]} Rc8 {[%clk 00:57:37]} {[%emt
00:05:49]} 21. Qg4 {[%clk 00:40:01]} {[%emt 00:00:24]} Bb4 {[%clk 00:54:14]}
{[%emt 00:03:52]} 22. Rc1 {[%clk 00:28:31]} {[%emt 00:12:01]} Qg5 {[%emt
00:02:36]} 23. Qe2 {[%clk 00:28:31]} Rfd8 {[%clk 00:48:48]} {[%emt 00:04:19]}
24. Rcc2 {[%clk 00:28:51]} {[%emt 00:00:10]} Nc6 {[%clk 00:40:13]} {[%emt
00:09:05]} 25. Nf3 {[%clk 00:24:53]} {[%emt 00:04:28]} Qf6 {[%clk 00:38:43]}
{[%emt 00:01:59]} 26. a3 {[%clk 00:23:22]} {[%emt 00:02:03]} Bxc3 {[%clk
00:36:29]} {[%emt 00:02:44]} 27. bxc3 {[%clk 00:23:32]} {[%emt 00:00:20]} Ne7
{[%clk 00:30:44]} {[%emt 00:06:14]} 28. Ne5 {[%clk 00:23:33]} {[%emt 00:00:30]}
g6 {[%clk 00:29:11]} {[%emt 00:02:03]} 29. a4 {[%clk 00:15:50]} {[%emt
00:08:13]} h5 {[%clk 00:26:33]} {[%emt 00:03:08]} 30. a5 {[%clk 00:11:24]}
{[%emt 00:04:56]} bxa5 {[%clk 00:24:50]} {[%emt 00:02:13]} 31. Ba6 {[%clk
00:11:25]} {[%emt 00:00:29]} Bxa6 {[%clk 00:20:05]} {[%emt 00:05:15]} 32. Qxa6
{[%clk 00:11:53]} {[%emt 00:00:02]} Kg7 {[%clk 00:19:26]} {[%emt 00:01:08]} 33.
Qxa5 {[%clk 00:11:42]} {[%emt 00:00:42]} h4 {[%clk 00:18:37]} {[%emt 00:01:19]}
34. gxh4 {[%clk 00:08:10]} {[%emt 00:04:02]} Qxh4 {[%clk 00:18:39]} {[%emt
00:00:27]} 35. Nf3 {[%clk 00:08:27]} {[%emt 00:00:14]} Qf6 {[%clk 00:18:13]}
{[%emt 00:00:55]} 36. Qe5 {[%clk 00:07:26]} {[%emt 00:01:31]} Nc6 {[%clk
00:17:46]} {[%emt 00:00:57]} 37. Qxf6+ {[%clk 00:07:27]} {[%emt 00:00:30]} Kxf6
{[%clk 00:18:11]} {[%emt 00:00:04]} 38. Ra2 {[%clk 00:05:46]} {[%emt 00:02:12]}
a5 {[%clk 00:18:22]} {[%emt 00:00:19]} 39. g3 {[%clk 00:03:52]} {[%emt
00:02:24]} Rb8 {[%clk 00:17:46]} {[%emt 00:01:06]} 40. Kg2 {[%clk 00:03:11]}
{[%emt 00:01:10]} Rdc8 {[%clk 00:13:38]} {[%emt 00:04:39]} 1/2-1/2

[Event "FIDE Grand Swiss 2023"]
[Site "Villa Marina, Douglas, Isle of Man, Isle Of Man"]
[Date "2023.11.02"]
[Round "8.54"]
[White "Sanal, Vahap"]
[Black "Kozak, Adam"]
[Result "1/2-1/2"]
[TimeControl "40/90 + 30 + 30s/move"]
[WhiteFideId "6300545"]
[BlackFideId "753246"]
[WhiteElo "2603"]
[BlackElo "2566"]

1. e4 {[%clk 01:40:58]} e5 {[%clk 01:40:54]} {[%emt 00:00:08]} 2. Nf3 {[%clk
01:41:21]} {[%emt 00:00:06]} Nc6 {[%clk 01:41:20]} {[%emt 00:00:05]} 3. Bb5
{[%clk 01:41:09]} {[%emt 00:00:42]} Nf6 {[%clk 01:41:28]} {[%emt 00:00:22]} 4.
d3 {[%clk 01:41:30]} {[%emt 00:00:08]} Bc5 {[%clk 01:40:56]} {[%emt 00:01:02]}
5. O-O {[%clk 01:41:48]} {[%emt 00:00:11]} Nd4 {[%clk 01:40:21]} {[%emt
00:01:07]} 6. Nxd4 {[%clk 01:42:06]} {[%emt 00:00:11]} Bxd4 {[%clk 01:40:47]}
{[%emt 00:00:05]} 7. c3 {[%clk 01:42:28]} {[%emt 00:00:07]} Bb6 {[%clk
01:41:04]} {[%emt 00:00:14]} 8. Na3 {[%clk 01:42:48]} {[%emt 00:00:08]} c6
{[%clk 01:40:12]} {[%emt 00:01:23]} 9. Ba4 {[%clk 01:41:37]} {[%emt 00:01:41]}
d6 {[%clk 01:40:20]} {[%emt 00:00:23]} 10. Bc2 {[%clk 01:42:01]} {[%emt
00:00:05]} Be6 {[%clk 01:38:52]} {[%emt 00:01:59]} 11. Nc4 {[%clk 01:38:57]}
{[%emt 00:03:33]} Bc7 {[%clk 01:38:46]} {[%emt 00:00:36]} 12. Qe2 {[%clk
01:36:23]} {[%emt 00:03:02]} b5 {[%clk 01:24:49]} {[%emt 00:14:30]} 13. Ne3
{[%clk 01:35:33]} {[%emt 00:01:19]} O-O {[%clk 01:25:06]} {[%emt 00:00:13]} 14.
d4 {[%clk 01:35:03]} {[%emt 00:00:59]} Re8 {[%clk 01:19:18]} {[%emt 00:06:19]}
15. Rd1 {[%clk 01:26:48]} {[%emt 00:08:43]} d5 {[%clk 01:04:17]} {[%emt
00:15:33]} 16. exd5 {[%clk 01:24:39]} {[%emt 00:02:38]} Bxd5 {[%clk 00:53:38]}
{[%emt 00:11:10]} 17. Nxd5 {[%clk 01:23:13]} {[%emt 00:01:56]} Nxd5 {[%clk
00:53:43]} {[%emt 00:00:24]} 18. dxe5 {[%clk 01:22:27]} {[%emt 00:01:16]} Bxe5
{[%clk 00:51:02]} {[%emt 00:03:12]} 19. Qf3 {[%clk 01:20:56]} {[%emt 00:01:55]}
Qf6 {[%clk 00:50:46]} {[%emt 00:00:52]} 20. Qxf6 {[%clk 01:19:37]} {[%emt
00:01:49]} Bxf6 {[%clk 00:51:08]} {[%emt 00:00:08]} 21. Bd2 {[%clk 01:10:37]}
{[%emt 00:09:29]} a5 {[%clk 00:34:45]} {[%emt 00:16:54]} 22. Rac1 {[%clk
00:51:37]} {[%emt 00:19:29]} g6 {[%clk 00:20:14]} {[%emt 00:15:01]} 23. g3
{[%clk 00:43:47]} {[%emt 00:08:20]} Nb6 {[%clk 00:09:08]} {[%emt 00:11:36]} 24.
Bf4 {[%clk 00:29:26]} {[%emt 00:14:51]} Nd5 {[%clk 00:07:42]} {[%emt 00:01:57]}
25. Bd2 {[%clk 00:28:17]} {[%emt 00:01:38]} Nb6 {[%clk 00:08:07]} {[%emt
00:00:06]} 26. b3 {[%clk 00:18:18]} {[%emt 00:10:28]} a4 {[%clk 00:08:04]}
{[%emt 00:00:33]} 27. Kf1 {[%clk 00:17:20]} {[%emt 00:01:27]} axb3 {[%clk
00:06:07]} {[%emt 00:02:28]} 28. Bxb3 {[%clk 00:17:25]} {[%emt 00:00:24]} Na4
{[%clk 00:03:54]} {[%emt 00:02:44]} 29. Be3 {[%clk 00:14:44]} {[%emt 00:03:10]}
Nxc3 {[%clk 00:00:32]} {[%emt 00:03:54]} 30. Rd6 {[%clk 00:12:29]} {[%emt
00:02:43]} Be5 {[%clk 00:00:31]} {[%emt 00:00:33]} 31. Rd7 {[%clk 00:12:07]}
{[%emt 00:00:51]} Nd5 {[%clk 00:00:34]} {[%emt 00:00:27]} 32. Bg5 {[%clk
00:07:49]} {[%emt 00:04:48]} Ra6 {[%clk 00:00:31]} {[%emt 00:00:33]} 33. Re1
{[%clk 00:07:49]} {[%emt 00:00:29]} Raa8 {[%clk 00:00:34]} {[%emt 00:00:28]} 34.
Rc1 {[%clk 00:02:03]} {[%emt 00:06:16]} Ra6 {[%clk 00:00:42]} {[%emt 00:00:22]}
35. Rxc6 {[%clk 00:02:14]} {[%emt 00:00:19]} Rxc6 {[%clk 00:01:08]} {[%emt
00:00:05]} 36. Bxd5 {[%clk 00:02:40]} {[%emt 00:00:03]} Ree6 {[%clk 00:00:39]}
{[%emt 00:00:59]} 37. Bh6 {[%clk 00:01:30]} {[%emt 00:01:40]} Rc8 {[%clk
00:00:32]} {[%emt 00:00:38]} 38. Bxe6 {[%clk 00:01:52]} {[%emt 00:00:07]} fxe6
{[%clk 00:00:59]} {[%emt 00:00:03]} 39. Rb7 {[%clk 00:00:34]} {[%emt 00:01:48]}
Bd4 {[%clk 00:00:31]} {[%emt 00:00:59]} 40. Rxb5 {[%clk 00:00:42]} {[%emt
00:00:22]} Rc2 {[%clk 00:00:33]} {[%emt 00:00:29]} 41. Rb8+ {[%clk 00:42:41]}
{[%emt 00:08:30]} Kf7 {[%clk 00:50:55]} {[%emt 00:00:08]} 42. Rf8+ {[%clk
00:43:08]} {[%emt 00:00:03]} Ke7 {[%clk 00:51:19]} {[%emt 00:00:07]} 43. a3
{[%clk 00:43:13]} {[%emt 00:00:25]} Ra2 {[%clk 00:41:44]} {[%emt 00:10:04]} 44.
Rf3 {[%clk 00:39:24]} {[%emt 00:04:18]} e5 {[%clk 00:40:17]} {[%emt 00:01:58]}
45. g4 {[%clk 00:27:51]} {[%emt 00:12:03]} Ke6 {[%clk 00:38:01]} {[%emt
00:02:46]} 46. Bg5 {[%clk 00:27:41]} {[%emt 00:00:39]} e4 {[%clk 00:22:45]}
{[%emt 00:15:47]} 47. Rf4 {[%clk 00:25:07]} {[%emt 00:03:03]} Kd5 {[%clk
00:23:00]} {[%emt 00:00:16]} 48. Rf7 {[%clk 00:25:14]} {[%emt 00:00:22]} Rxa3
{[%clk 00:22:25]} {[%emt 00:01:05]} 49. Rxh7 {[%clk 00:23:09]} {[%emt
00:02:35]} Rf3 {[%clk 00:21:28]} {[%emt 00:01:27]} 50. Rd7+ {[%clk 00:22:08]}
{[%emt 00:01:32]} Kc4 {[%clk 00:18:31]} {[%emt 00:03:28]} 51. Bh4 {[%clk
00:22:32]} {[%emt 00:00:04]} e3 {[%clk 00:17:13]} {[%emt 00:01:49]} 52. Bg3
{[%clk 00:20:15]} {[%emt 00:02:46]} exf2 {[%clk 00:16:21]} {[%emt 00:01:24]} 53.
Re7 {[%clk 00:20:12]} {[%emt 00:00:32]} Kd3 {[%clk 00:12:41]} {[%emt 00:04:10]}
54. Re2 {[%clk 00:20:23]} {[%emt 00:00:19]} Re3 {[%clk 00:12:50]} {[%emt
00:00:21]} 55. Rxe3+ {[%clk 00:20:22]} {[%emt 00:00:31]} Bxe3 {[%clk 00:13:15]}
{[%emt 00:00:05]} 56. Bxf2 {[%clk 00:20:49]} {[%emt 00:00:02]} Bf4 {[%clk
00:12:34]} {[%emt 00:01:12]} 57. Kg2 {[%clk 00:21:17]} {[%emt 00:00:02]} Ke4
{[%clk 00:12:49]} {[%emt 00:00:15]} 58. Bg3 {[%clk 00:21:30]} {[%emt 00:00:16]}
Bg5 {[%clk 00:13:07]} {[%emt 00:00:12]} 59. h4 {[%clk 00:21:09]} {[%emt
00:00:52]} Be7 {[%clk 00:13:29]} {[%emt 00:00:08]} 60. Kh3 {[%clk 00:21:28]}
{[%emt 00:00:10]} Bf8 {[%clk 00:12:53]} {[%emt 00:01:07]} 61. Be1 {[%clk
00:21:48]} {[%emt 00:00:09]} Bd6 {[%clk 00:12:56]} {[%emt 00:00:28]} 62. Bc3
{[%clk 00:22:13]} {[%emt 00:00:05]} Be7 {[%clk 00:13:16]} {[%emt 00:00:09]} 63.
Bb2 {[%clk 00:22:30]} {[%emt 00:00:13]} Bf8 {[%clk 00:13:30]} {[%emt 00:00:17]}
64. Bf6 {[%clk 00:22:55]} {[%emt 00:00:04]} Bd6 {[%clk 00:13:40]} {[%emt
00:00:20]} 65. Bg7 {[%clk 00:23:01]} {[%emt 00:00:24]} Be7 {[%clk 00:14:01]}
{[%emt 00:00:10]} 66. Bh6 {[%clk 00:22:28]} {[%emt 00:01:03]} Bd6 {[%clk
00:14:19]} {[%emt 00:00:12]} 67. Bg5 {[%clk 00:22:51]} {[%emt 00:00:07]} Bf8
{[%clk 00:14:44]} {[%emt 00:00:05]} 68. Kg2 {[%clk 00:23:18]} {[%emt 00:00:03]}
Bd6 {[%clk 00:15:01]} {[%emt 00:00:12]} 69. Kf2 {[%clk 00:23:44]} {[%emt
00:00:04]} Bc5+ {[%clk 00:15:25]} {[%emt 00:00:07]} 70. Ke2 {[%clk 00:24:12]}
{[%emt 00:00:02]} Bd6 {[%clk 00:15:48]} {[%emt 00:00:07]} 71. h5 {[%clk
00:24:37]} {[%emt 00:00:05]} gxh5 {[%clk 00:16:12]} {[%emt 00:00:06]} 72. gxh5
{[%clk 00:25:04]} {[%emt 00:00:01]} Kf5 {[%clk 00:16:36]} {[%emt 00:00:06]} 73.
Be3 {[%clk 00:25:29]} {[%emt 00:00:06]} Be7 {[%clk 00:16:45]} {[%emt 00:00:22]}
74. h6 {[%clk 00:25:55]} {[%emt 00:00:03]} Kg6 {[%clk 00:17:10]} {[%emt
00:00:04]} 75. Kf3 {[%clk 00:26:24]} {[%emt 00:00:02]} Bf8 {[%clk 00:17:35]}
{[%emt 00:00:05]} 76. Kg4 {[%clk 00:26:50]} {[%emt 00:00:04]} Bxh6 {[%clk
00:18:02]} {[%emt 00:00:04]} 77. Bxh6 {[%clk 00:27:14]} {[%emt 00:00:05]}
1/2-1/2